Body,Body Name,Date,TransNo,Amount � (Excl VAT),Supplier name,Description,Expense Area,Expense Type,Expense Code,
http://opendatacommunities.org/id/london-borough-council/sutton,London Borough of Sutton,01/05/2020,1295895,49.69 , AMZNMKTPLACE AMAZON.CO,SPLIT - SOULONG CHILDREN PUNCHING BALL STAND PUNCH BAG BOXING SET STAND BOX GLOVES PUNCHING TRAINING ADJUSTABLE HEIGHT RED SUITABLE FOR PROFESSIONAL USE IN THE GYM AND AT HOME (70-105CM) (100%),Peoples Services Directorate,Personal Requisites,F106,
http://opendatacommunities.org/id/london-borough-council/sutton,London Borough of Sutton,07/05/2020,1295895,22.50 , AMZNMKTPLACE,"SPLIT - 10PK ASSORTED SIZED SHOE LACES | INCLUDES FLAT/ROUNDED/FLAT WAXED LACES IN BLACK, BROWN & WHITE BY CROSBY (109.17%)",Peoples Services Directorate,Personal Requisites,F106,
http://opendatacommunities.org/id/london-borough-council/sutton,London Borough of Sutton,07/05/2020,1295895,(1.89), AMZNMKTPLACE,BALANCING ENTRY AMOUNT (-27.51%),Peoples Services Directorate,Personal Requisites,F106,
http://opendatacommunities.org/id/london-borough-council/sutton,London Borough of Sutton,04/05/2020,1295895,38.99 , CDKEYS.COM,XBOX MEMBERSHIP,Peoples Services Directorate,Personal Requisites,F106,
http://opendatacommunities.org/id/london-borough-council/sutton,London Borough of Sutton,30/04/2020,1295895,150.00 , EB  WEBINAR USING THE,TRAINING,Peoples Services Directorate,Miscellaneous Training Courses,F304,
http://opendatacommunities.org/id/london-borough-council/sutton,London Borough of Sutton,30/04/2020,1295895,85.15 , MAILCHIMP,SUBSCRIPTIONS,Peoples Services Directorate,Advertising/Publicity (non Staff),F240,
http://opendatacommunities.org/id/london-borough-council/sutton,London Borough of Sutton,18/05/2020,1295895,8.58 , ASDA STORES,COOKERY INGREDIENTS,Peoples Services Directorate,Education Equipment,F009,
http://opendatacommunities.org/id/london-borough-council/sutton,London Borough of Sutton,21/05/2020,1295895,802.43 , ARGOS LTD,LEAVING CARE SET UP,Peoples Services Directorate,Personal Requisites,F106,
http://opendatacommunities.org/id/london-borough-council/sutton,London Borough of Sutton,21/05/2020,1295895,174.97 , ARGOS LTD,LEAVING CARE SET UP,Peoples Services Directorate,Personal Requisites,F106,
http://opendatacommunities.org/id/london-borough-council/sutton,London Borough of Sutton,14/05/2020,1295895,26.95 , ICELAND,DR GROCERIES,Peoples Services Directorate,Personal Requisites,F106,
http://opendatacommunities.org/id/london-borough-council/sutton,London Borough of Sutton,12/05/2020,1295895,14.58 , PPOINT_ BOTTLE & BASKE,JC GROCERIES,Peoples Services Directorate,Personal Requisites,F106,
http://opendatacommunities.org/id/london-borough-council/sutton,London Borough of Sutton,11/05/2020,1295895,40.05 , W M MORRISON STORE,MC GROCERIES,Peoples Services Directorate,Personal Requisites,F106,
http://opendatacommunities.org/id/london-borough-council/sutton,London Borough of Sutton,11/05/2020,1295895,13.14 , THE POST OFFICE,JL POST,Peoples Services Directorate,Personal Requisites,F106,
http://opendatacommunities.org/id/london-borough-council/sutton,London Borough of Sutton,08/05/2020,1295895,30.65 , PPOINT_ BOTTLE & BASKE,JC GROCERIES,Peoples Services Directorate,Personal Requisites,F106,
http://opendatacommunities.org/id/london-borough-council/sutton,London Borough of Sutton,01/05/2020,1295895,50.00 , AMAZON.CO.UK UA20I70G5,CA BDAY,Peoples Services Directorate,Personal Requisites,F106,
http://opendatacommunities.org/id/london-borough-council/sutton,London Borough of Sutton,28/04/2020,1295895,80.84 , LBSUTTON,KP 1ST WK RENT,Peoples Services Directorate,Personal Requisites,F106,
http://opendatacommunities.org/id/london-borough-council/sutton,London Borough of Sutton,25/05/2020,1295895,50.78 , ICELAND,DR AND LC GROCERIES,Peoples Services Directorate,Personal Requisites,F106,
http://opendatacommunities.org/id/london-borough-council/sutton,London Borough of Sutton,19/05/2020,1295895,14.00 , GEN REGISTER OFFICE,GENERAL REGISTER OFFICE .PNG,Peoples Services Directorate,Personal Requisites,F106,
http://opendatacommunities.org/id/london-borough-council/sutton,London Borough of Sutton,19/05/2020,1295895,21.99 , PAYPAL  PROGRILLUK EBA,RESISTANCE BANDS,Peoples Services Directorate,Personal Requisites,F106,
http://opendatacommunities.org/id/london-borough-council/sutton,London Borough of Sutton,30/04/2020,1295895,232.50 , WWW.BEDS.CO.UK,BEDS.CO.UK,Peoples Services Directorate,Client Care/Assistance,H301,
http://opendatacommunities.org/id/london-borough-council/sutton,London Borough of Sutton,30/04/2020,1295895,72.00 , WWW.COURIEREXPERT.CO.U,COURIER SERVICE,Peoples Services Directorate,Client Care/Assistance,H301,
http://opendatacommunities.org/id/london-borough-council/sutton,London Borough of Sutton,22/05/2020,1295895,5.96 , PRICE BUSTERS,KP SETTING UP,Peoples Services Directorate,Set Up Costs - Children Leaving Care,H336,
http://opendatacommunities.org/id/london-borough-council/sutton,London Borough of Sutton,22/05/2020,1295895,38.75 , LIDL GB LONDON,KP GROCERIES,Peoples Services Directorate,Set Up Costs - Children Leaving Care,H336,
http://opendatacommunities.org/id/london-borough-council/sutton,London Borough of Sutton,19/05/2020,1295895,34.00 , POUNDLAND,KP SETTING UP,Peoples Services Directorate,Set Up Costs - Children Leaving Care,H336,
http://opendatacommunities.org/id/london-borough-council/sutton,London Borough of Sutton,30/04/2020,1295895,41.98 , ARGOS LTD,KP SETTING UP,Peoples Services Directorate,Set Up Costs - Children Leaving Care,H336,
http://opendatacommunities.org/id/london-borough-council/sutton,London Borough of Sutton,29/04/2020,1295895,11.00 , AMAZON.CO.UK XD1CV1TN5,SPLIT - QURAN: ARABIC AND ENGLISH IN PARALLEL (100%),Peoples Services Directorate,Personal Requisites,F106,
http://opendatacommunities.org/id/london-borough-council/sutton,London Borough of Sutton,30/04/2020,1295895,669.97 , ARGOS LTD,KITCHEN EQUIPMENT,Peoples Services Directorate,Personal Requisites,F106,
http://opendatacommunities.org/id/london-borough-council/sutton,London Borough of Sutton,30/04/2020,1295895,86.97 , ARGOS LTD,KITCHEN EQUIPMENT,Peoples Services Directorate,Personal Requisites,F106,
http://opendatacommunities.org/id/london-borough-council/sutton,London Borough of Sutton,06/05/2020,1295895,170.49 , ARGOS LTD,ZH TV SETTING UP,Peoples Services Directorate,Set Up Costs - Children Leaving Care,H336,
http://opendatacommunities.org/id/london-borough-council/sutton,London Borough of Sutton,11/05/2020,1295895,146.83 , AMZNMKTPLACE,"SPLIT - 24272SMHDLED 24"" HD READY SMART LED TV (97.27%)",Peoples Services Directorate,Personal Requisites,F106,
http://opendatacommunities.org/id/london-borough-council/sutton,London Borough of Sutton,11/05/2020,1295895,4.12 , AMZNMKTPLACE,BALANCING ENTRY AMOUNT (2.73%),Peoples Services Directorate,Personal Requisites,F106,
http://opendatacommunities.org/id/london-borough-council/sutton,London Borough of Sutton,14/05/2020,1295895,139.99 , SP   GALLANT SPORT,GALLANT BOXING BAG,Peoples Services Directorate,Client Care/Assistance,H301,
http://opendatacommunities.org/id/london-borough-council/sutton,London Borough of Sutton,22/05/2020,1295895,217.98 , DOCUSIGN INC. GBP,SERVICE COST,Peoples Services Directorate,Personal Requisites,F106,
http://opendatacommunities.org/id/london-borough-council/sutton,London Borough of Sutton,15/05/2020,1295895,88.65 , WILKO RETAIL LIMITED,60 - COURIER EXPERT - H301 0312 9999.PDF,Peoples Services Directorate,Client Care/Assistance,H301,
http://opendatacommunities.org/id/london-borough-council/sutton,London Borough of Sutton,01/05/2020,1295895,(199.99), ARGOS LTD,ARGOS LAPTOP,Peoples Services Directorate,Client Care/Assistance,H301,
http://opendatacommunities.org/id/london-borough-council/sutton,London Borough of Sutton,29/04/2020,1295895,199.99 , ARGOS LTD,ARGOS LAPTOP,Peoples Services Directorate,Client Care/Assistance,H301,
http://opendatacommunities.org/id/london-borough-council/sutton,London Borough of Sutton,23/05/2020,1295895,197.81 , FACEBK DHGPXSW9L2,SPONSORED FACEBOOK POSTS FOR FOSTERING VIRTUAL EVENTS,Peoples Services Directorate,Fees - Other,F299,
http://opendatacommunities.org/id/london-borough-council/sutton,London Borough of Sutton,21/05/2020,1295895,390.00 , HAYMARKET MEDIA GROUP,PR WEEK AWARD ENTRY,Peoples Services Directorate,Fees - Other,F299,
http://opendatacommunities.org/id/london-borough-council/sutton,London Borough of Sutton,04/05/2020,1295895,"1,116.00 ", GREY MATTER LEARNING,GREY MATTER LEARNING,Peoples Services Directorate,Personal Requisites,F106,
http://opendatacommunities.org/id/london-borough-council/sutton,London Borough of Sutton,20/05/2020,1295895,20.00 , OYSTER AUTO TOPUP,OYSTER TOP UP,Peoples Services Directorate,Travelling and Subsistence Allowances,A530,
http://opendatacommunities.org/id/london-borough-council/sutton,London Borough of Sutton,15/05/2020,1295895,350.00 , OYO-BOOKING-156454187,HOTEL OYO,Peoples Services Directorate,Client Care/Assistance,H301,
http://opendatacommunities.org/id/london-borough-council/sutton,London Borough of Sutton,30/04/2020,1295895,612.00 , OYO-BOOKING-156081376,HOTEL OYO,Peoples Services Directorate,Client Care/Assistance,H301,
http://opendatacommunities.org/id/london-borough-council/sutton,London Borough of Sutton,25/05/2020,1295895,2.49 , AMZNMKTPLACE,SPLIT - TRODAT CLASSMATES MAGNETIC ERASER - RED (100%),Peoples Services Directorate,LAC - Education,F269,
http://opendatacommunities.org/id/london-borough-council/sutton,London Borough of Sutton,22/05/2020,1295895,7.31 , AMAZON.CO.UK 1D1JB3Z35,SPLIT - NEW FUNCTIONAL SKILLS MATHS LEVEL 1 - STUDY & TEST PRACTICE (FOR 2019 & BEYOND) (CGP FUNCTIONAL SKILLS) (23.07%),Peoples Services Directorate,LAC - Education,F269,
http://opendatacommunities.org/id/london-borough-council/sutton,London Borough of Sutton,22/05/2020,1295895,6.99 , AMAZON.CO.UK 1D1JB3Z35,SPLIT - GCSE ENGLISH LANGUAGE AQA COMPLETE REVISION & PRACTICE - GRADE 9-1 COURSE (WITH ONLINE EDITION) (CGP GCSE ENGLISH 9-1 REVISION) (22.06%),Peoples Services Directorate,LAC - Education,F269,
http://opendatacommunities.org/id/london-borough-council/sutton,London Borough of Sutton,22/05/2020,1295895,9.44 , AMAZON.CO.UK 1D1JB3Z35,SPLIT - GCSE MATHS AQA COMPLETE REVISION & PRACTICE: HIGHER - GRADE 9-1 COURSE (WITH ONLINE EDITION) (CGP GCSE MATHS 9-1 REVISION) (29.79%),Peoples Services Directorate,LAC - Education,F269,
http://opendatacommunities.org/id/london-borough-council/sutton,London Borough of Sutton,17/05/2020,1295895,5.77 , AMAZON.CO.UK FT03G23K5,SPLIT - TYRANNOSAURUS DRIP (24.52%),Peoples Services Directorate,LAC - Education,F269,
http://opendatacommunities.org/id/london-borough-council/sutton,London Borough of Sutton,17/05/2020,1295895,15.99 , AMAZON.CO.UK AX37H7YP5,SPLIT - NEW A-LEVEL BIOLOGY: OCR A YEAR 1 & 2 COMPLETE REVISION & PRACTICE WITH ONLINE EDITION (CGP A-LEVEL BIOLOGY) (31.58%),Peoples Services Directorate,LAC - Education,F269,
http://opendatacommunities.org/id/london-borough-council/sutton,London Borough of Sutton,17/05/2020,1295895,9.44 , AMAZON.CO.UK AX37H7YP5,SPLIT - A-LEVEL PSYCHOLOGY: AQA YEAR 1 & AS COMPLETE REVISION & PRACTICE (CGP A-LEVEL PSYCHOLOGY) (18.64%),Peoples Services Directorate,LAC - Education,F269,
http://opendatacommunities.org/id/london-borough-council/sutton,London Borough of Sutton,17/05/2020,1295895,15.77 , AMAZON.CO.UK AX37H7YP5,SPLIT - NEW A-LEVEL CHEMISTRY: OCR A YEAR 1 & 2 COMPLETE REVISION & PRACTICE WITH ONLINE EDITION (CGP A-LEVEL CHEMISTRY) (31.14%),Peoples Services Directorate,LAC - Education,F269,
http://opendatacommunities.org/id/london-borough-council/sutton,London Borough of Sutton,17/05/2020,1295895,9.44 , AMAZON.CO.UK AX37H7YP5,SPLIT - A-LEVEL PSYCHOLOGY: AQA YEAR 2 COMPLETE REVISION & PRACTICE (CGP A-LEVEL PSYCHOLOGY) (18.64%),Peoples Services Directorate,LAC - Education,F269,
http://opendatacommunities.org/id/london-borough-council/sutton,London Borough of Sutton,16/05/2020,1295895,10.00 , AMAZON.CO.UK 0B5HZ5365,"SPLIT - ORCHARD TOYS PARTY, PARTY, PARTY GAME (85.69%)",Peoples Services Directorate,LAC - Education,F269,
http://opendatacommunities.org/id/london-borough-council/sutton,London Borough of Sutton,16/05/2020,1295895,1.67 , AMAZON.CO.UK 0B5HZ5365,BALANCING ENTRY AMOUNT (14.31%),Peoples Services Directorate,LAC - Education,F269,
http://opendatacommunities.org/id/london-borough-council/sutton,London Borough of Sutton,13/05/2020,1295895,12.77 , AMZNMKTPLACE,SPLIT - ORCHARD POST BOX GAME (90.17%),Peoples Services Directorate,LAC - Education,F269,
http://opendatacommunities.org/id/london-borough-council/sutton,London Borough of Sutton,13/05/2020,1295895,1.39 , AMZNMKTPLACE,BALANCING ENTRY AMOUNT (9.83%),Peoples Services Directorate,LAC - Education,F269,
http://opendatacommunities.org/id/london-borough-council/sutton,London Borough of Sutton,13/05/2020,1295895,14.12 , AMZNMKTPLACE AMAZON.CO,SPLIT - ORCHARD TOYS MONEY MATCH CAFE GAME (100%),Peoples Services Directorate,LAC - Education,F269,
http://opendatacommunities.org/id/london-borough-council/sutton,London Borough of Sutton,13/05/2020,1295895,13.32 , AMZNMKTPLACE AMAZON.CO,SPLIT - ORCHARD TOYS WOODLAND PARTY JIGSAW PUZZLE (100%),Peoples Services Directorate,LAC - Education,F269,
http://opendatacommunities.org/id/london-borough-council/sutton,London Borough of Sutton,13/05/2020,1295895,4.99 , AMAZON.CO.UK M18JR16J4,SPLIT - ISADORA MOON HAS A BIRTHDAY (24.29%),Peoples Services Directorate,LAC - Education,F269,
http://opendatacommunities.org/id/london-borough-council/sutton,London Borough of Sutton,13/05/2020,1295895,5.95 , AMAZON.CO.UK M18JR16J4,SPLIT - MUMMY FAIRY AND ME: UNICORN WISHES (28.97%),Peoples Services Directorate,LAC - Education,F269,
http://opendatacommunities.org/id/london-borough-council/sutton,London Borough of Sutton,13/05/2020,1295895,5.29 , AMAZON.CO.UK M18JR16J4,SPLIT - THE MAGIC FINGER (DAHL FICTION) (25.75%),Peoples Services Directorate,LAC - Education,F269,
http://opendatacommunities.org/id/london-borough-council/sutton,London Borough of Sutton,13/05/2020,1295895,4.31 , AMAZON.CO.UK M18JR16J4,BALANCING ENTRY AMOUNT (20.99%),Peoples Services Directorate,LAC - Education,F269,
http://opendatacommunities.org/id/london-borough-council/sutton,London Borough of Sutton,13/05/2020,1295895,12.49 , AMZNMKTPLACE AMAZON.CO,SPLIT - ORCHARD TOYS - MAGIC SPELLING GAME (53.01%),Peoples Services Directorate,LAC - Education,F269,
http://opendatacommunities.org/id/london-borough-council/sutton,London Borough of Sutton,13/05/2020,1295895,11.07 , AMZNMKTPLACE AMAZON.CO,SPLIT - ORCHARD - CHEEKY MONKEYS (46.99%),Peoples Services Directorate,LAC - Education,F269,
http://opendatacommunities.org/id/london-borough-council/sutton,London Borough of Sutton,12/05/2020,1295895,24.99 , AMAZON.CO.UK SN1531KF5,"SPLIT - VTECH 505603 BABY WALKER, MULTI-COLOURED (100%)",Peoples Services Directorate,LAC - Education,F269,
http://opendatacommunities.org/id/london-borough-council/sutton,London Borough of Sutton,11/05/2020,1295895,4.70 , AMAZON.CO.UK T405X9TN5,SPLIT - HANDWRITING TODAY: BK. 1 (HANDWRITING TODAY) (24.71%),Peoples Services Directorate,LAC - Education,F269,
http://opendatacommunities.org/id/london-borough-council/sutton,London Borough of Sutton,11/05/2020,1295895,10.99 , AMAZON.CO.UK T405X9TN5,SPLIT - LONGMAN PHOTO DICTIONARY (60.67%),Peoples Services Directorate,LAC - Education,F269,
http://opendatacommunities.org/id/london-borough-council/sutton,London Borough of Sutton,11/05/2020,1295895,2.48 , AMAZON.CO.UK T405X9TN5,SPLIT - TIMES TABLES WORKBOOK AGES 7-11: IDEAL FOR HOME LEARNING (COLLINS EASY LEARNING KS2) (14.62%),Peoples Services Directorate,LAC - Education,F269,
http://opendatacommunities.org/id/london-borough-council/sutton,London Borough of Sutton,08/05/2020,1295895,12.37 , AMAZON.CO.UK FQ7Q60I65,SPLIT - HOW TO DRAW COOL STUFF: A DRAWING GUIDE FOR TEACHERS AND STUDENTS (48.09%),Peoples Services Directorate,LAC - Education,F269,
http://opendatacommunities.org/id/london-borough-council/sutton,London Borough of Sutton,08/05/2020,1295895,8.96 , AMAZON.CO.UK FQ7Q60I65,SPLIT - CREATE THIS BOOK (34.84%),Peoples Services Directorate,LAC - Education,F269,
http://opendatacommunities.org/id/london-borough-council/sutton,London Borough of Sutton,08/05/2020,1295895,4.39 , AMAZON.CO.UK FQ7Q60I65,"SPLIT - PRITT GLUE STICK, SAFE & CHILD-FRIENDLY CRAFT GLUE FOR ARTS & CRAFTS ACTIVITIES, STRONG-HOLD ADHESIVE FOR SCHOOL & OFFICE SUPPLIES, 5X11G PRITT STICK (17.07%)",Peoples Services Directorate,LAC - Education,F269,
http://opendatacommunities.org/id/london-borough-council/sutton,London Borough of Sutton,12/05/2020,1295895,10.17 , AMZNMKTPLACE AMAZON.CO,SPLIT - THE GREEN BOARD GAME CO G0990045 BRAINBOX ENGLISH (22.62%),Peoples Services Directorate,LAC - Education,F269,
http://opendatacommunities.org/id/london-borough-council/sutton,London Borough of Sutton,12/05/2020,1295895,15.95 , AMZNMKTPLACE AMAZON.CO,SPLIT - FUN SOCIAL SKILLS AND THERAPY GAME: CBT THERAPEUTIC FAMILY GAME FOR MEANINGFUL CONVERSATIONS AND OPEN COMMUNICATION BETWEEN ADULTS AND TEENAGERS LEADING TO BETTER RELATIONSHIPS. GREAT COUNSELING TOOL (29.58%),Peoples Services Directorate,LAC - Education,F269,
http://opendatacommunities.org/id/london-borough-council/sutton,London Borough of Sutton,12/05/2020,1295895,8.51 , AMZNMKTPLACE AMAZON.CO,"SPLIT - GREEN BOARD GAMES GRE90046 BRAINBOX SCIENCE, MULTICOLOURED (18.93%)",Peoples Services Directorate,LAC - Education,F269,
http://opendatacommunities.org/id/london-borough-council/sutton,London Borough of Sutton,12/05/2020,1295895,9.34 , AMZNMKTPLACE AMAZON.CO,SPLIT - BRAINBOX - WORLD HISTORY (20.79%),Peoples Services Directorate,LAC - Education,F269,
http://opendatacommunities.org/id/london-borough-council/sutton,London Borough of Sutton,12/05/2020,1295895,3.83 , AMZNMKTPLACE AMAZON.CO,BALANCING ENTRY AMOUNT (8.08%),Peoples Services Directorate,LAC - Education,F269,
http://opendatacommunities.org/id/london-borough-council/sutton,London Borough of Sutton,12/05/2020,1295895,13.22 , AMZNMKTPLACE,SPLIT - ORCHARD TOYS FUN LEARNING GAMES [087 FOOTBALL GAME] 5 YEARS + (100%),Peoples Services Directorate,LAC - Education,F269,
http://opendatacommunities.org/id/london-borough-council/sutton,London Borough of Sutton,07/05/2020,1295895,27.95 , AMZNMKTPLACE AMAZON.CO,"SPLIT - SURFACE PRO SURFACE LAPTOP CHARGER, 65W POWER SUPPLY ADAPTER COMPATIBLE FOR BOTH MICROSOFT LAPTOP/TABLET SURFACE PRO 3/4/5/6 SURFACE PRO SURFACE GO & (100%)",Peoples Services Directorate,LAC - Education,F269,
http://opendatacommunities.org/id/london-borough-council/sutton,London Borough of Sutton,05/05/2020,1295895,8.99 , AMZNMKTPLACE AMAZON.CO,"SPLIT - 11+ VOCABULARY FLASH CARDS - 11 PLUS VERBAL REASONING BOOSTER, CLOZE SENTENCES, SYNONYMS, ANTONYMS, HOMONYMS, SUPPORT ON CONFUSING WORDS, ONLINE PRACTICE, 250 WORDS (34.66%)",Peoples Services Directorate,LAC - Education,F269,
http://opendatacommunities.org/id/london-borough-council/sutton,London Borough of Sutton,05/05/2020,1295895,16.95 , AMZNMKTPLACE AMAZON.CO,SPLIT - MRS WORDSMITH'S STORYTELLER'S ILLUSTRATED DICTIONARY (65.34%),Peoples Services Directorate,LAC - Education,F269,
http://opendatacommunities.org/id/london-borough-council/sutton,London Borough of Sutton,04/05/2020,1295895,1.99 , AMAZON.CO.UK ID2KI9MI5,SPLIT - MR. NOSEY (MR. MEN CLASSIC LIBRARY) (8.3%),Peoples Services Directorate,LAC - Education,F269,
http://opendatacommunities.org/id/london-borough-council/sutton,London Borough of Sutton,04/05/2020,1295895,1.99 , AMAZON.CO.UK ID2KI9MI5,SPLIT - LITTLE MISS TIDY (LITTLE MISS CLASSIC LIBRARY) (8.3%),Peoples Services Directorate,LAC - Education,F269,
http://opendatacommunities.org/id/london-borough-council/sutton,London Borough of Sutton,04/05/2020,1295895,16.66 , AMAZON.CO.UK ID2KI9MI5,SPLIT - PLAY-DOH STAMP 'N TOP PIZZA OVEN TOY WITH 5 NON-TOXIC PLAY-DOH MULTICOLOURS (83.4%),Peoples Services Directorate,LAC - Education,F269,
http://opendatacommunities.org/id/london-borough-council/sutton,London Borough of Sutton,03/05/2020,1295895,3.95 , AMAZON.CO.UK QN72Q9K25,"SPLIT - MENTAL ARITHMETIC BOOK 3: YEARS 4-5, AGES 8-10 (56.92%)",Peoples Services Directorate,LAC - Education,F269,
http://opendatacommunities.org/id/london-borough-council/sutton,London Borough of Sutton,03/05/2020,1295895,2.99 , AMAZON.CO.UK QN72Q9K25,BALANCING ENTRY AMOUNT (43.08%),Peoples Services Directorate,LAC - Education,F269,
http://opendatacommunities.org/id/london-borough-council/sutton,London Borough of Sutton,03/05/2020,1295895,13.56 , AMAZON.CO.UK C72L71SW5,SPLIT - KS3 MATHS PROGRESS STUDENT BOOK DELTA 1 (MATHS PROGRESS 2014) (84.31%),Peoples Services Directorate,LAC - Education,F269,
http://opendatacommunities.org/id/london-borough-council/sutton,London Borough of Sutton,03/05/2020,1295895,2.28 , AMAZON.CO.UK C72L71SW5,SPLIT - KS3 MATHS PROGRESS PROGRESSION WORKBOOK DELTA 1 (MATHS PROGRESS 2014) (15.69%),Peoples Services Directorate,LAC - Education,F269,
http://opendatacommunities.org/id/london-borough-council/sutton,London Borough of Sutton,01/05/2020,1295895,2.25 , AMAZON.CO.UK L83RM08T5,SPLIT - A CHRISTMAS CAROL (WORDSWORTH CLASSICS) (69.44%),Peoples Services Directorate,LAC - Education,F269,
http://opendatacommunities.org/id/london-borough-council/sutton,London Borough of Sutton,01/05/2020,1295895,0.99 , AMAZON.CO.UK L83RM08T5,BALANCING ENTRY AMOUNT (30.56%),Peoples Services Directorate,LAC - Education,F269,
http://opendatacommunities.org/id/london-borough-council/sutton,London Borough of Sutton,30/04/2020,1295895,9.16 , AMZNMKTPLACE AMAZON.CO,SPLIT - PACK OF 3 X A4 MATT BLACK COVER STARTER SKETCHBOOKS WITH 140GSM WHITE CARTRIDGE PAPER (100%),Peoples Services Directorate,LAC - Education,F269,
http://opendatacommunities.org/id/london-borough-council/sutton,London Borough of Sutton,30/04/2020,1295895,3.08 , AMZNMKTPLACE,"SPLIT - BIC HIGHLIGHTER FLUORESCENT PENS - ASSORTED COLOURS, PACK OF 5 (6.97%)",Peoples Services Directorate,LAC - Education,F269,
http://opendatacommunities.org/id/london-borough-council/sutton,London Borough of Sutton,30/04/2020,1295895,5.85 , AMZNMKTPLACE,SPLIT - HELIX ULTIMATE SCHOOL SET (12.75%),Peoples Services Directorate,LAC - Education,F269,
http://opendatacommunities.org/id/london-borough-council/sutton,London Borough of Sutton,30/04/2020,1295895,9.76 , AMZNMKTPLACE,SPLIT - GCSE MATHS EDEXCEL COMPLETE REVISION & PRACTICE: HIGHER - GRADE 9-1 COURSE (WITH ONLINE EDITION) (CGP GCSE MATHS 9-1 REVISION) (18.61%),Peoples Services Directorate,LAC - Education,F269,
http://opendatacommunities.org/id/london-borough-council/sutton,London Borough of Sutton,30/04/2020,1295895,8.60 , AMZNMKTPLACE,SPLIT - KS3 SCIENCE ALL-IN-ONE REVISION AND PRACTICE (COLLINS KS3 REVISION) (15.62%),Peoples Services Directorate,LAC - Education,F269,
http://opendatacommunities.org/id/london-borough-council/sutton,London Borough of Sutton,30/04/2020,1295895,5.13 , AMZNMKTPLACE,SPLIT - KS3 SCIENCE YEAR 9 WORKBOOK (COLLINS KS3 REVISION) (9.32%),Peoples Services Directorate,LAC - Education,F269,
http://opendatacommunities.org/id/london-borough-council/sutton,London Borough of Sutton,30/04/2020,1295895,8.44 , AMZNMKTPLACE,"SPLIT - PROCASE LARGE CAPACITY PENCIL CASE BIG PEN BAG POUCH WITH COMPARTMENTS, FOR BOYS SCHOOL STUDENTS ADULTS OFFICE -BLACK (18.39%)",Peoples Services Directorate,LAC - Education,F269,
http://opendatacommunities.org/id/london-borough-council/sutton,London Borough of Sutton,30/04/2020,1295895,4.27 , AMZNMKTPLACE,SPLIT - HERLITZ A6 RULED RECORD CARD - ASSORTED COLOURS (200 PIECES) (9.32%),Peoples Services Directorate,LAC - Education,F269,
http://opendatacommunities.org/id/london-borough-council/sutton,London Borough of Sutton,30/04/2020,1295895,3.92 , AMZNMKTPLACE,BALANCING ENTRY AMOUNT (9.02%),Peoples Services Directorate,LAC - Education,F269,
http://opendatacommunities.org/id/london-borough-council/sutton,London Borough of Sutton,30/04/2020,1295895,5.71 , AMAZON.CO.UK 2577V91D5,SPLIT - GRADE 9-1 GCSE ENGLISH TEXT GUIDE - A CHRISTMAS CAROL (CGP GCSE ENGLISH 9-1 REVISION) (53.36%),Peoples Services Directorate,LAC - Education,F269,
http://opendatacommunities.org/id/london-borough-council/sutton,London Borough of Sutton,30/04/2020,1295895,4.99 , AMAZON.CO.UK 2577V91D5,BALANCING ENTRY AMOUNT (46.64%),Peoples Services Directorate,LAC - Education,F269,
http://opendatacommunities.org/id/london-borough-council/sutton,London Borough of Sutton,29/04/2020,1295895,10.83 , AMAZON.CO.UK QQ0ZZ9XB5,"SPLIT - MELISSA & DOUG GIANT GIRAFFE - THE ORIGINAL (PLAYSPACES & ROOM DECOR, LIFELIKE STUFFED ANIMAL PLUSH TOY, OVER 1.2 METRES TALL, GREAT GIFT FOR GIRLS AND BOYS - BEST FOR 3, 4, 5 YEAR OLDS AND UP) (52.02%)",Peoples Services Directorate,LAC - Education,F269,
http://opendatacommunities.org/id/london-borough-council/sutton,London Borough of Sutton,29/04/2020,1295895,9.99 , AMAZON.CO.UK QQ0ZZ9XB5,SPLIT - MATH ART AND DRAWING GAMES FOR KIDS: 40+ FUN ART PROJECTS TO BUILD AMAZING MATH SKILLS (47.98%),Peoples Services Directorate,LAC - Education,F269,
http://opendatacommunities.org/id/london-borough-council/sutton,London Borough of Sutton,28/04/2020,1295895,7.28 , AMZNMKTPLACE AMAZON.CO,SPLIT - KREATIVE KIDS 86 PIECE CRAFT AND ART SET - KIDS COLOURING KIT WITH CRAYONS AND WATERCOLOUR PAINT (70.03%),Peoples Services Directorate,LAC - Education,F269,
http://opendatacommunities.org/id/london-borough-council/sutton,London Borough of Sutton,28/04/2020,1295895,3.12 , AMZNMKTPLACE AMAZON.CO,BALANCING ENTRY AMOUNT (29.97%),Peoples Services Directorate,LAC - Education,F269,
http://opendatacommunities.org/id/london-borough-council/sutton,London Borough of Sutton,28/04/2020,1295895,4.16 , AMZNMKTPLACE AMAZON.CO,SPLIT - ROYAL & LANGNICKEL SKETCHING ARTIST PENCILS - SET OF 12 DRAWING PENCILS 5H TO 6B (100%),Peoples Services Directorate,LAC - Education,F269,
http://opendatacommunities.org/id/london-borough-council/sutton,London Borough of Sutton,28/04/2020,1295895,4.98 , AMZNMKTPLACE AMAZON.CO,SPLIT - STAEDTLER 185 C24 NORIS COLOUR COLOURING PENCIL - ASSORTED COLOURS (100%),Peoples Services Directorate,LAC - Education,F269,
http://opendatacommunities.org/id/london-borough-council/sutton,London Borough of Sutton,28/04/2020,1295895,4.00 , AMAZON.CO.UK UO8X50IQ5,SPLIT - GANGSTA GRANNY (40.04%),Peoples Services Directorate,LAC - Education,F269,
http://opendatacommunities.org/id/london-borough-council/sutton,London Borough of Sutton,28/04/2020,1295895,4.00 , AMAZON.CO.UK UO8X50IQ5,SPLIT - GRANDPA'S GREAT ESCAPE (40.04%),Peoples Services Directorate,LAC - Education,F269,
http://opendatacommunities.org/id/london-borough-council/sutton,London Borough of Sutton,28/04/2020,1295895,1.99 , AMAZON.CO.UK UO8X50IQ5,BALANCING ENTRY AMOUNT (19.92%),Peoples Services Directorate,LAC - Education,F269,
http://opendatacommunities.org/id/london-borough-council/sutton,London Borough of Sutton,28/04/2020,1295895,16.66 , AMZNMKTPLACE AMAZON.CO,SPLIT - WATERCOLOUR PAINT ESSENTIAL SET - 24 VIBRANT COLOURS - LIGHTWEIGHT AND PORTABLE - PERFECT FOR BUDDING HOBBYISTS AND PROFESSIONAL ARTISTS - PAINTBRUSH INCLUDED - MOZART SUPPLIES (100%),Peoples Services Directorate,LAC - Education,F269,
http://opendatacommunities.org/id/london-borough-council/sutton,London Borough of Sutton,28/04/2020,1295895,11.46 , AMAZON.CO.UK NW2SZ1U75,"SPLIT - HP Z3700 BLACK 2.4 GHZ USB  SLIM WIRELESS MOUSE WITH BLUE LED 1200 DPI OPTICAL SENSOR, UP TO 16 MONTHS BATTERY LIFE (78.62%)",Peoples Services Directorate,LAC - Education,F269,
http://opendatacommunities.org/id/london-borough-council/sutton,London Borough of Sutton,28/04/2020,1295895,3.11 , AMAZON.CO.UK NW2SZ1U75,BALANCING ENTRY AMOUNT (21.38%),Peoples Services Directorate,LAC - Education,F269,
http://opendatacommunities.org/id/london-borough-council/sutton,London Borough of Sutton,27/04/2020,1295895,6.17 , AMAZON.CO.UK V540Q3JE5,SPLIT - 4M GLITTER MERMAID MOULD AND PAINT (40.26%),Peoples Services Directorate,LAC - Education,F269,
http://opendatacommunities.org/id/london-borough-council/sutton,London Borough of Sutton,27/04/2020,1295895,4.99 , AMAZON.CO.UK V540Q3JE5,SPLIT - THE SNAIL AND THE WHALE (27.15%),Peoples Services Directorate,LAC - Education,F269,
http://opendatacommunities.org/id/london-borough-council/sutton,London Borough of Sutton,27/04/2020,1295895,5.99 , AMAZON.CO.UK V540Q3JE5,SPLIT - THE SLIGHTLY ANNOYING ELEPHANT (32.59%),Peoples Services Directorate,LAC - Education,F269,
http://opendatacommunities.org/id/london-borough-council/sutton,London Borough of Sutton,27/04/2020,1295895,82.24 , AMZNMKTPLACE,"SPLIT - JABRA EVOLVE 40 STEREO HEADSET FOR PC, LAPTOP, MOBILE PHONE, SMARTPHONE, SOFTPHONE AND TABLET (96.64%)",Peoples Services Directorate,LAC - Education,F269,
http://opendatacommunities.org/id/london-borough-council/sutton,London Borough of Sutton,27/04/2020,1295895,2.86 , AMZNMKTPLACE,BALANCING ENTRY AMOUNT (3.36%),Peoples Services Directorate,LAC - Education,F269,
http://opendatacommunities.org/id/london-borough-council/sutton,London Borough of Sutton,22/05/2020,1295895,7.95 , AMAZON.CO.UK 1D1JB3Z35,SPLIT - NEW FUNCTIONAL SKILLS ENGLISH: EDEXCEL LEVEL 1 - STUDY & TEST PRACTICE (FOR 2019 & BEYOND) (CGP FUNCTIONAL SKILLS) (25.08%),Peoples Services Directorate,LAC - Education,F269,
http://opendatacommunities.org/id/london-borough-council/sutton,London Borough of Sutton,22/05/2020,1295895,21.39 , AMZNMKTPLACE,SPLIT - HASBRO THE GAME OF LIFE GAME (88.55%),Peoples Services Directorate,LAC - Education,F269,
http://opendatacommunities.org/id/london-borough-council/sutton,London Borough of Sutton,22/05/2020,1295895,2.76 , AMZNMKTPLACE,BALANCING ENTRY AMOUNT (11.45%),Peoples Services Directorate,LAC - Education,F269,
http://opendatacommunities.org/id/london-borough-council/sutton,London Borough of Sutton,22/05/2020,1295895,21.64 , AMZNMKTPLACE,SPLIT - HASBRO GAMING CLUEDO THE CLASSIC MYSTERY BOARD GAME (49.99%),Peoples Services Directorate,LAC - Education,F269,
http://opendatacommunities.org/id/london-borough-council/sutton,London Borough of Sutton,22/05/2020,1295895,8.32 , AMZNMKTPLACE,SPLIT - MAPOMINOES EUROPE - THE ULTIMATE GEOGRAPHY GAME - FUN AND EDUCATIONAL TRAVEL CARD GAME FOR KIDS TEENAGERS AND ADULTS. LIKE DOMINOES WITH MAPS. (19.23%),Peoples Services Directorate,LAC - Education,F269,
http://opendatacommunities.org/id/london-borough-council/sutton,London Borough of Sutton,22/05/2020,1295895,13.32 , AMZNMKTPLACE,SPLIT - SCRABBLE ORGINAL Y9592 BOARD GAME (30.78%),Peoples Services Directorate,LAC - Education,F269,
http://opendatacommunities.org/id/london-borough-council/sutton,London Borough of Sutton,21/05/2020,1295895,6.24 , AMZNMKTPLACE,SPLIT - HTI TOYS TRADITIONAL GAMES LINE UP 4 BOARD GAME FUN FOR ALL KIDS BOYS AND GIRLS (100%),Peoples Services Directorate,LAC - Education,F269,
http://opendatacommunities.org/id/london-borough-council/sutton,London Borough of Sutton,20/05/2020,1295895,26.00 , AMAZON.CO.UK GH6KX0FD5,SPLIT - OXFORD READING TREE: LEVEL 3: FLOPPY'S PHONICS FICTION: PACK OF 6 (100%),Peoples Services Directorate,LAC - Education,F269,
http://opendatacommunities.org/id/london-borough-council/sutton,London Borough of Sutton,19/05/2020,1295895,34.50 , AMAZON.CO.UK XC0IC6595,SPLIT - OXFORD READING TREE: LEVEL 6: STORIES: PACK OF 6 (100%),Peoples Services Directorate,LAC - Education,F269,
http://opendatacommunities.org/id/london-borough-council/sutton,London Borough of Sutton,17/05/2020,1295895,4.00 , AMAZON.CO.UK FT03G23K5,SPLIT - THE SNAIL AND THE WHALE FESTIVE EDITION (16.99%),Peoples Services Directorate,LAC - Education,F269,
http://opendatacommunities.org/id/london-borough-council/sutton,London Borough of Sutton,17/05/2020,1295895,5.29 , AMAZON.CO.UK FT03G23K5,SPLIT - THE PICTURE PUZZLE ACTIVITY BOOK (BUSTER PUZZLE ACTIVITY) (22.47%),Peoples Services Directorate,LAC - Education,F269,
http://opendatacommunities.org/id/london-borough-council/sutton,London Borough of Sutton,17/05/2020,1295895,7.07 , AMAZON.CO.UK FT03G23K5,SPLIT - LEARNING RESOURCES POP GAMES POP FOR ADDITION & SUBTRACTION (36.02%),Peoples Services Directorate,LAC - Education,F269,
http://opendatacommunities.org/id/london-borough-council/sutton,London Borough of Sutton,14/05/2020,1295895,40.00 , WWW.ICO.ORG.UK,ICO REGISTRATION,Resources Directorate,Subscriptions - General,F450,
http://opendatacommunities.org/id/london-borough-council/sutton,London Borough of Sutton,03/05/2020,1295895,8.32 , SPOTIFY UK,MUSIC FOR WEDDINGS,Resources Directorate,Subscriptions - General,F450,
http://opendatacommunities.org/id/london-borough-council/sutton,London Borough of Sutton,19/05/2020,1295895,4.17 , CHEAM VILLAGE HARDWARE,COMPOST FOR GARDEN,Resources Directorate,Miscellaneous Expenses,F620,
http://opendatacommunities.org/id/london-borough-council/sutton,London Borough of Sutton,16/05/2020,1295895,5.82 , MORDEN GARDEN CENTRE,COMPOST FOR GARDEN,Resources Directorate,Miscellaneous Expenses,F620,
http://opendatacommunities.org/id/london-borough-council/sutton,London Borough of Sutton,15/05/2020,1295895,11.67 , WM MORRISONS STORE,PLANTS FOR GARDEN,Resources Directorate,Miscellaneous Expenses,F620,
http://opendatacommunities.org/id/london-borough-council/sutton,London Borough of Sutton,14/05/2020,1295895,9.17 , B & Q 1191,PLANTS FOR GARDEN,Resources Directorate,Miscellaneous Expenses,F620,
http://opendatacommunities.org/id/london-borough-council/sutton,London Borough of Sutton,11/05/2020,1295895,110.78 , ARGOS LTD,ESSENTIAL ITEMS FOR HOMELESS HOUSEHOLD C-19,"Environment, Housing & Regeneration Directorate",Other Services,F340,
http://opendatacommunities.org/id/london-borough-council/sutton,London Borough of Sutton,05/05/2020,1295895,119.12 , ARGOS LTD,ESSENTIAL ITEMS HOMELESS HOUSEHOLD CV19,"Environment, Housing & Regeneration Directorate",Other Services,F340,
http://opendatacommunities.org/id/london-borough-council/sutton,London Borough of Sutton,15/05/2020,1295895,6.21 , MAILCHIMP    MONTHLY,WEB HOSTING,Resources Directorate,Fees - Computer Software,F384,
http://opendatacommunities.org/id/london-borough-council/sutton,London Borough of Sutton,14/05/2020,1295895,225.86 , MAILCHIMP    MONTHLY,WEB HOSTING,Resources Directorate,Fees - Computer Software,F384,
http://opendatacommunities.org/id/london-borough-council/sutton,London Borough of Sutton,22/05/2020,1295895,95.95 , DOMINO'S PIZZA,COMMUNITY HUB STAFF/VOLUNTEERS SUBSISTENCE,Resources Directorate,Travelling and Subsistence Allowances,A530,
http://opendatacommunities.org/id/london-borough-council/sutton,London Borough of Sutton,02/05/2020,1295895,110.37 , DOMINO'S PIZZA,COMMUNITY HUB VOLUNTEERS/STAFF SUBSISTENCE,Resources Directorate,Travelling and Subsistence Allowances,A530,
http://opendatacommunities.org/id/london-borough-council/sutton,London Borough of Sutton,13/05/2020,1295895,115.83 , SCREWFIX DIRECT,COMMUNITY HUB EQUIPMENT,Resources Directorate,Equipment including Meters,D520,
http://opendatacommunities.org/id/london-borough-council/sutton,London Borough of Sutton,16/05/2020,1295895,828.62 , ASDA STORES,FOOD HUB - ASDA,Resources Directorate,Provisions - General,F150,
http://opendatacommunities.org/id/london-borough-council/sutton,London Borough of Sutton,09/05/2020,1295895,664.60 , ASDA STORES,FOOD HUB - ASDA,Resources Directorate,Provisions - General,F150,
http://opendatacommunities.org/id/london-borough-council/sutton,London Borough of Sutton,02/05/2020,1295895,"1,353.90 ", ASDA STORES,FOOD HUB - ASDA,Resources Directorate,Provisions - General,F150,
http://opendatacommunities.org/id/london-borough-council/sutton,London Borough of Sutton,22/05/2020,1295895,"1,986.45 ", SAINSBURYS 2331,COSTS INCURRED PURCHASING GROCERIES FOR THE LBS COMMUNITY HUB.,Resources Directorate,Assistance to Voluntary Organisations,F471,
http://opendatacommunities.org/id/london-borough-council/sutton,London Borough of Sutton,22/05/2020,1295895,560.00 , SAINSBURYS 2331,COSTS INCURRED PURCHASING GROCERIES FOR THE LBS COMMUNITY HUB.,Resources Directorate,Assistance to Voluntary Organisations,F471,
http://opendatacommunities.org/id/london-borough-council/sutton,London Borough of Sutton,22/05/2020,1295895,841.05 , SAINSBURYS 2331,COSTS INCURRED PURCHASING GROCERIES FOR THE LBS COMMUNITY HUB.,Resources Directorate,Assistance to Voluntary Organisations,F471,
http://opendatacommunities.org/id/london-borough-council/sutton,London Borough of Sutton,18/05/2020,1295895,"1,664.22 ", TESCO STORE 3235,COSTS INCURRED PURCHASING GROCERIES FOR THE LBS COMMUNITY HUB.,Resources Directorate,Assistance to Voluntary Organisations,F471,
http://opendatacommunities.org/id/london-borough-council/sutton,London Borough of Sutton,15/05/2020,1295895,"1,780.30 ", SAINSBURYS 2331,COSTS INCURRED PURCHASING GROCERIES FOR THE LBS COMMUNITY HUB.,Resources Directorate,Assistance to Voluntary Organisations,F471,
http://opendatacommunities.org/id/london-borough-council/sutton,London Borough of Sutton,06/05/2020,1295895,200.40 , TESCO STORE 3235,COVID19 TESCO FOOD PAYMENT FOR HUB,Resources Directorate,Assistance to Voluntary Organisations,F471,
http://opendatacommunities.org/id/london-borough-council/sutton,London Borough of Sutton,06/05/2020,1295895,"1,943.85 ", TESCO STORE 3235,COVID19 TESCO FOOD PAYMENT FOR HUB,Resources Directorate,Assistance to Voluntary Organisations,F471,
http://opendatacommunities.org/id/london-borough-council/sutton,London Borough of Sutton,05/05/2020,1295895,500.72 , ASDA STORES,COVID19 ASDA FOOD PAYMENT FOR HUB,Resources Directorate,Assistance to Voluntary Organisations,F471,
http://opendatacommunities.org/id/london-borough-council/sutton,London Borough of Sutton,04/05/2020,1295895,50.20 , TESCO STORE 3235,COVID19 TESCO FOOD PAYMENT FOR HUB,Resources Directorate,Assistance to Voluntary Organisations,F471,
http://opendatacommunities.org/id/london-borough-council/sutton,London Borough of Sutton,22/05/2020,1295895,"1,362.56 ", TESCO STORE 3235,TESCO COMMUNITY FOOD HUB 22ND MAY,Resources Directorate,Assistance to Voluntary Organisations,F471,
http://opendatacommunities.org/id/london-borough-council/sutton,London Borough of Sutton,20/05/2020,1295895,334.89 , WAITROSE 202,WAITROSE COMMUNITY FOOD HUB 20TH MAY - SPLIT TRANSACTION,Resources Directorate,Assistance to Voluntary Organisations,F471,
http://opendatacommunities.org/id/london-borough-council/sutton,London Borough of Sutton,20/05/2020,1295895,"2,000.00 ", WAITROSE 202,WAITROSE COMMUNITY FOOD ORDER 20TH MAY,Resources Directorate,Assistance to Voluntary Organisations,F471,
http://opendatacommunities.org/id/london-borough-council/sutton,London Borough of Sutton,13/05/2020,1295895,327.10 , TESCO STORE 3235,TESCO COMMUNITY FOOD HUB 13TH MAY - SPLIT TRANSACTION,Resources Directorate,Assistance to Voluntary Organisations,F471,
http://opendatacommunities.org/id/london-borough-council/sutton,London Borough of Sutton,13/05/2020,1295895,"2,000.00 ", TESCO STORE 3235,TESCO COMMUNITY FOOD HUB 13TH MAY,Resources Directorate,Assistance to Voluntary Organisations,F471,
http://opendatacommunities.org/id/london-borough-council/sutton,London Borough of Sutton,11/05/2020,1295895,"1,777.36 ", TESCO STORE 3235,TESCO COMMUNITY HUB ORDER 12TH MAY,Resources Directorate,Assistance to Voluntary Organisations,F471,
http://opendatacommunities.org/id/london-borough-council/sutton,London Borough of Sutton,27/04/2020,1295895,815.16 , ASDA STORES,COMMUNITY HUB FOOD - ASDA - 270420,Resources Directorate,Assistance to Voluntary Organisations,F471,
http://opendatacommunities.org/id/london-borough-council/sutton,London Borough of Sutton,21/05/2020,1295895,"1,938.51 ", TESCO STORE 3235,FOOD HUB,Resources Directorate,Assistance to Voluntary Organisations,F471,
http://opendatacommunities.org/id/london-borough-council/sutton,London Borough of Sutton,11/05/2020,1295895,"1,126.68 ", TESCO STORE 3235,FOOD HUB,Resources Directorate,Assistance to Voluntary Organisations,F471,
http://opendatacommunities.org/id/london-borough-council/sutton,London Borough of Sutton,19/05/2020,1295895,"1,990.46 ", TESCO STORE 3235,COVID19 TESCO FOOD PAYMENT FOR HUB,Resources Directorate,Assistance to Voluntary Organisations,F471,
http://opendatacommunities.org/id/london-borough-council/sutton,London Borough of Sutton,15/05/2020,1295895,"1,009.16 ", TESCO STORE 3235,COVID19 TESCO FOOD PAYMENT FOR HUB,Resources Directorate,Assistance to Voluntary Organisations,F471,
http://opendatacommunities.org/id/london-borough-council/sutton,London Borough of Sutton,14/05/2020,1295895,668.52 , ASDA STORES,COVID19 ASDA FOOD PAYMENT FOR HUB,Resources Directorate,Assistance to Voluntary Organisations,F471,
http://opendatacommunities.org/id/london-borough-council/sutton,London Borough of Sutton,07/05/2020,1295895,"1,835.50 ", SAINSBURYS 2331,COVID19 SAINSBURYS FOOD PAYMENT FOR HUB,Resources Directorate,Assistance to Voluntary Organisations,F471,
http://opendatacommunities.org/id/london-borough-council/sutton,London Borough of Sutton,04/05/2020,1295895,"1,997.19 ", TESCO STORE 3235,COVID19 TESCO FOOD PAYMENT FOR HUB,Resources Directorate,Assistance to Voluntary Organisations,F471,
http://opendatacommunities.org/id/london-borough-council/sutton,London Borough of Sutton,01/05/2020,1295895,52.00 , SAINSBURYS 2331,COVID19 SAINSBURYS FOOD PAYMENT FOR HUB,Resources Directorate,Assistance to Voluntary Organisations,F471,
http://opendatacommunities.org/id/london-borough-council/sutton,London Borough of Sutton,01/05/2020,1295895,"1,352.00 ", SAINSBURYS 2331,COVID19 SAINSBURYS FOOD PAYMENT FOR HUB,Resources Directorate,Assistance to Voluntary Organisations,F471,
http://opendatacommunities.org/id/london-borough-council/sutton,London Borough of Sutton,01/05/2020,1295895,"1,704.73 ", TESCO STORE 3235,COVID19 TESCO FOOD PAYMENT FOR HUB,Resources Directorate,Assistance to Voluntary Organisations,F471,
http://opendatacommunities.org/id/london-borough-council/sutton,London Borough of Sutton,29/04/2020,1295895,"1,587.26 ", TESCO STORE 3235,COVID19 TESCO FOOD PAYMENT FOR HUB,Resources Directorate,Assistance to Voluntary Organisations,F471,
http://opendatacommunities.org/id/london-borough-council/sutton,London Borough of Sutton,27/04/2020,1295895,"1,863.14 ", TESCO STORE 3235,COVID 19 TESCO FOOD PAYMENT FOR HUB,Resources Directorate,Assistance to Voluntary Organisations,F471,
http://opendatacommunities.org/id/london-borough-council/sutton,London Borough of Sutton,07/05/2020,1295895,65.70 , SAINSBURYS 2331,COVID19 SAINSBURYS FOOD PAYMENT FOR HUB,Resources Directorate,Assistance to Voluntary Organisations,F471,
http://opendatacommunities.org/id/london-borough-council/sutton,London Borough of Sutton,15/05/2020,1295895,"1,096.20 ", SAINSBURYS 2331,COSTS INCURRED PURCHASING GROCERIES FOR THE LBS COMMUNITY HUB.,Resources Directorate,Assistance to Voluntary Organisations,F471,
http://opendatacommunities.org/id/london-borough-council/sutton,London Borough of Sutton,15/05/2020,1295895,310.50 , SAINSBURYS 2331,COSTS INCURRED PURCHASING GROCERIES FOR THE LBS COMMUNITY HUB.,Resources Directorate,Assistance to Voluntary Organisations,F471,
http://opendatacommunities.org/id/london-borough-council/sutton,London Borough of Sutton,13/05/2020,1295895,"7,854.62 ", BFS GROUP,FOOD FOR COMMUNITY HUB,Resources Directorate,Assistance to Voluntary Organisations,F471,
http://opendatacommunities.org/id/london-borough-council/sutton,London Borough of Sutton,09/05/2020,1295895,70.92 , DOMINO'S PIZZA,LUNCH FOR THE COMMUNITY HUB,Resources Directorate,Assistance to Voluntary Organisations,F471,
http://opendatacommunities.org/id/london-borough-council/sutton,London Borough of Sutton,09/05/2020,1295895,70.92 , DOMINO'S PIZZA,LUNCH FOR THE COMMUNITY HUB,Resources Directorate,Assistance to Voluntary Organisations,F471,
http://opendatacommunities.org/id/london-borough-council/sutton,London Borough of Sutton,15/05/2020,1295895,728.56 , ASDA STORES,ASDA FOOD HUB PAYMENT,Resources Directorate,Assistance to Voluntary Organisations,F471,
http://opendatacommunities.org/id/london-borough-council/sutton,London Borough of Sutton,08/05/2020,1295895,909.01 , ASDA STORES,FOOD HUB PAYMENT,Resources Directorate,Assistance to Voluntary Organisations,F471,
http://opendatacommunities.org/id/london-borough-council/sutton,London Borough of Sutton,19/05/2020,1295895,629.89 , ASDA STORES,PAYMENT AT ASDA FOR FOOD HUB,Resources Directorate,Assistance to Voluntary Organisations,F471,
http://opendatacommunities.org/id/london-borough-council/sutton,London Borough of Sutton,12/05/2020,1295895,576.88 , ASDA STORES,ASDA PAYMENT FOR THE FOOD HUB,Resources Directorate,Assistance to Voluntary Organisations,F471,
http://opendatacommunities.org/id/london-borough-council/sutton,London Borough of Sutton,12/05/2020,1295895,"1,000.00 ", ASDA STORES,ASDA PAYMENT FOR FOOD HUB,Resources Directorate,Assistance to Voluntary Organisations,F471,
http://opendatacommunities.org/id/london-borough-council/sutton,London Borough of Sutton,28/04/2020,1295895,945.16 , ASDA STORES,ASDA PAYMENT FOR THE FOOD HUB,Resources Directorate,Assistance to Voluntary Organisations,F471,
http://opendatacommunities.org/id/london-borough-council/sutton,London Borough of Sutton,18/05/2020,1295895,"1,337.50 ", ASDA STORES,COMMUNITY HUB FOOD (ASDA) 180520,Resources Directorate,Assistance to Voluntary Organisations,F471,
http://opendatacommunities.org/id/london-borough-council/sutton,London Borough of Sutton,14/05/2020,1295895,"2,251.38 ", TESCO STORE 3235,COMMUNITY HUB FOOD (TESCO) 140520,Resources Directorate,Assistance to Voluntary Organisations,F471,
http://opendatacommunities.org/id/london-borough-council/sutton,London Borough of Sutton,04/05/2020,1295895,"1,123.78 ", ASDA STORES,COMMUNITY HUB FOOD - ASDA - 040520,Resources Directorate,Assistance to Voluntary Organisations,F471,
http://opendatacommunities.org/id/london-borough-council/sutton,London Borough of Sutton,19/05/2020,1295895,179.99 , ARGOS LTD,CRISIS LOAN & GRANT,Resources Directorate,Grants,F473,
http://opendatacommunities.org/id/london-borough-council/sutton,London Borough of Sutton,19/05/2020,1295895,103.94 , ARGOS LTD,CRISIS LOAN & GRANT,Resources Directorate,Grants,F473,
http://opendatacommunities.org/id/london-borough-council/sutton,London Borough of Sutton,13/05/2020,1295895,514.98 , ARGOS LTD,CRISIS LOAN & GRANT,Resources Directorate,Grants,F473,
http://opendatacommunities.org/id/london-borough-council/sutton,London Borough of Sutton,11/05/2020,1295895,179.99 , ARGOS LTD,CRISIS LOAN & GRANT,Resources Directorate,Grants,F473,
http://opendatacommunities.org/id/london-borough-council/sutton,London Borough of Sutton,11/05/2020,1295895,126.95 , ARGOS LTD,CRISIS LOAN & GRANT,Resources Directorate,Grants,F473,
http://opendatacommunities.org/id/london-borough-council/sutton,London Borough of Sutton,07/05/2020,1295895,(145.95), ARGOS LTD,CRISIS LOAN & GRANT,Resources Directorate,Grants,F473,
http://opendatacommunities.org/id/london-borough-council/sutton,London Borough of Sutton,07/05/2020,1295895,(139.00), ARGOS LTD,CRISIS LOAN & GRANT,Resources Directorate,Grants,F473,
http://opendatacommunities.org/id/london-borough-council/sutton,London Borough of Sutton,06/05/2020,1295895,139.00 , ARGOS LTD,CRISIS LOAN & GRANT,Resources Directorate,Grants,F473,
http://opendatacommunities.org/id/london-borough-council/sutton,London Borough of Sutton,06/05/2020,1295895,279.98 , ARGOS LTD,CRISIS LOAN & GRANT,Resources Directorate,Grants,F473,
http://opendatacommunities.org/id/london-borough-council/sutton,London Borough of Sutton,30/04/2020,1295895,133.94 , ARGOS LTD,CL&G,Resources Directorate,Grants,F473,
http://opendatacommunities.org/id/london-borough-council/sutton,London Borough of Sutton,27/04/2020,1295895,149.99 , ARGOS LTD,CL&G,Resources Directorate,Grants,F473,
http://opendatacommunities.org/id/london-borough-council/sutton,London Borough of Sutton,27/04/2020,1295895,58.94 , ARGOS LTD,CL&G,Resources Directorate,Grants,F473,
http://opendatacommunities.org/id/london-borough-council/sutton,London Borough of Sutton,15/05/2020,1295895,"1,000.00 ", CS MORRISONS GIFT CARD,PURCHASE OF MORRISONS GIFT VOUCHERS FOR USE IN CRISIS LOAN/ GRANT AWARDS,Resources Directorate,Grants,F473,
http://opendatacommunities.org/id/london-borough-council/sutton,London Borough of Sutton,29/04/2020,1295895,338.99 , ARGOS LTD,"PURCHASE OF SINGLE BED, MATTRESS AND FRIDGE FREEZER FOR CRISIS LOAN",Resources Directorate,Grants,F473,
http://opendatacommunities.org/id/london-borough-council/sutton,London Borough of Sutton,06/05/2020,1295895,103.94 , ARGOS LTD,CRISIS LOAN & GRANT,Resources Directorate,Grants,F473,
http://opendatacommunities.org/id/london-borough-council/sutton,London Borough of Sutton,22/05/2020,1295895,128.95 , ARGOS LTD,CRISIS LOAN & GRANT,Resources Directorate,Grants,F473,
http://opendatacommunities.org/id/london-borough-council/sutton,London Borough of Sutton,21/05/2020,1295895,145.95 , ARGOS LTD,CRISIS LOAN & GRANT,Resources Directorate,Grants,F473,
http://opendatacommunities.org/id/london-borough-council/sutton,London Borough of Sutton,20/05/2020,1295895,179.99 , ARGOS LTD,CRISIS LOAN & GRANT,Resources Directorate,Grants,F473,
http://opendatacommunities.org/id/london-borough-council/sutton,London Borough of Sutton,06/05/2020,1295895,145.95 , ARGOS LTD,CRISIS LOAN & GRANT,Resources Directorate,Grants,F473,
http://opendatacommunities.org/id/london-borough-council/sutton,London Borough of Sutton,20/05/2020,1295895,188.95 , ARGOS LTD,CRISIS LOAN & GRANT,Resources Directorate,Grants,F473,
http://opendatacommunities.org/id/london-borough-council/sutton,London Borough of Sutton,27/04/2020,1295895,(40.00), LLOYDS BANK CHARGE,REFUND FROM LLOYDS ORIGINAL COST CHARGED IN ERROR,Resources Directorate,Fees - Other,F299,
http://opendatacommunities.org/id/london-borough-council/sutton,London Borough of Sutton,12/05/2020,1295895,(11.00), RBK REGISTRARS,REFUND OF TEST PAYMENT FOR NEW RBK REGISTRAR SYSTEM - FIRMSTEP / GOV.UK,Resources Directorate,Miscellaneous Expenses,F620,
http://opendatacommunities.org/id/london-borough-council/sutton,London Borough of Sutton,12/05/2020,1295895,(11.00), LBS REGISTRARS,REFUND OF TEST PAYMENT FOR NEW LBS REGISTRAR SYSTEM - FIRMSTEP / GOV.UK,Resources Directorate,Miscellaneous Expenses,F620,
http://opendatacommunities.org/id/london-borough-council/sutton,London Borough of Sutton,05/05/2020,1295895,11.00 , RBK REGISTRARS,TEST PAYMENT FOR NEW RBK REGISTRAR SYSTEM - FIRMSTEP / GOV.UK,Resources Directorate,Miscellaneous Expenses,F620,
http://opendatacommunities.org/id/london-borough-council/sutton,London Borough of Sutton,05/05/2020,1295895,11.00 , LBS REGISTRARS,TEST PAYMENT FOR NEW LBS REGISTRAR SYSTEM - FIRMSTEP / GOV.UK,Resources Directorate,Miscellaneous Expenses,F620,
http://opendatacommunities.org/id/london-borough-council/sutton,London Borough of Sutton,28/04/2020,1295895,1.50 , WWW.GOV.UK,PAYMENT FOR WILL,Resources Directorate,Legal Services,G049,
http://opendatacommunities.org/id/london-borough-council/sutton,London Borough of Sutton,07/05/2020,1295895,62.00 , WILKO RETAIL LIMITED,TESCO MOBILE TOPUP 10 FOR HOSPITAL CLIENT.PDF,Peoples Services Directorate,Special,D535,
http://opendatacommunities.org/id/london-borough-council/sutton,London Borough of Sutton,06/05/2020,1295895,20.00 , AMZNMKTPLACE,AMAZON MOBILE PHONE FOR HERBERT - 20.PDF,Peoples Services Directorate,Special,D535,
http://opendatacommunities.org/id/london-borough-council/sutton,London Borough of Sutton,05/05/2020,1295895,30.00 , WILKO RETAIL LIMITED,30.00 - F106 6452 6619 - WILKO (1).JPEG,Peoples Services Directorate,Special,D535,
http://opendatacommunities.org/id/london-borough-council/sutton,London Borough of Sutton,04/05/2020,1295895,25.00 , WILKO RETAIL LIMITED,25 WILKO.PDF,Peoples Services Directorate,Special,D535,
http://opendatacommunities.org/id/london-borough-council/sutton,London Borough of Sutton,01/05/2020,1295895,2.08 , WILKO RETAIL LIMITED,2.08 - F106 6452 6619 - WILKO .JPEG,Peoples Services Directorate,Special,D535,
http://opendatacommunities.org/id/london-borough-council/sutton,London Borough of Sutton,01/05/2020,1295895,44.25 , WILKO RETAIL LIMITED,44.25 - F106 6452 6619 - WILKO .JPEG,Peoples Services Directorate,Special,D535,
http://opendatacommunities.org/id/london-borough-council/sutton,London Borough of Sutton,01/05/2020,1295895,10.00 , POUNDLAND LTD 1211,10 WILKO PDF.PDF,Peoples Services Directorate,Special,D535,
http://opendatacommunities.org/id/london-borough-council/sutton,London Borough of Sutton,30/04/2020,1295895,10.00 , WILKO RETAIL LIMITED,PPE,Peoples Services Directorate,Special,D535,
http://opendatacommunities.org/id/london-borough-council/sutton,London Borough of Sutton,28/04/2020,1295895,41.70 , WILKO RETAIL LIMITED,41.70 F106 6452 6619 - WILKO .JPEG,Peoples Services Directorate,Special,D535,
http://opendatacommunities.org/id/london-borough-council/sutton,London Borough of Sutton,22/05/2020,1295895,30.00 , WILKO RETAIL LIMITED,30 WILKO.JPG - PPE PACKS,Peoples Services Directorate,Special,D535,
http://opendatacommunities.org/id/london-borough-council/sutton,London Borough of Sutton,15/05/2020,1295895,105.90 , NHSBSA PPC ONLINE PMT,NHS PRESCRIPTION,Peoples Services Directorate,Special,D535,
http://opendatacommunities.org/id/london-borough-council/sutton,London Borough of Sutton,14/05/2020,1295895,10.00 , MIP TESCO MOBILE TOPUP,TESCO MOBILE TOPUP 10 FOR HOSPITAL CLIENT.PDF,Peoples Services Directorate,Special,D535,
http://opendatacommunities.org/id/london-borough-council/sutton,London Borough of Sutton,15/05/2020,1295895,457.00 , RAFF ELECTRICAL,RAFF ELECTRICAL INVOICE FRIDGE FOR HOSPITAL TEAM PDF.PDF,Peoples Services Directorate,Furniture - Purchase,F080,
http://opendatacommunities.org/id/london-borough-council/sutton,London Borough of Sutton,22/05/2020,1295895,90.00 , ALLIUM,TWO FUNERAL WREATHS,Peoples Services Directorate,Temporary Protection - Homeless Persons,H300,
